{"text_format":"1","workbook":"xlsx","n_sheets":6,"sheets":["DEMANDE","ANALYSE","COMITÉ DE RECOMMANDATIONS","BILAN","LISTES","INFOS"],"not_rendered":{"charts":0,"images":0,"macros":1,"external_links":0,"defined_names":3,"comments":2,"pivot_tables":0},"unopened":[],"bounds":{"document_bytes":16777216,"sheet_cells":100000,"rows_first":2000,"rows_last":500,"rows_between":2000,"halvings":0,"cell_chars":16384,"cell_head_chars":4096},"cells_cut":0,"cells_raw":0,"read":"whole","date_system":"1900"}

{"sheet":"DEMANDE","index":0,"n_rows":169,"n_cols":14,"rows_kept":169,"cut":false,"hidden":false,"merged":[[6,0,6,5],[6,6,6,7],[58,0,58,1],[59,0,59,1],[60,0,60,1],[55,7,57,7],[58,7,62,7],[58,2,58,3],[56,2,56,3],[57,2,57,3],[16,5,16,7],[34,1,34,6],[53,0,53,7],[143,0,143,7],[38,1,38,3],[37,0,37,7],[44,1,44,3],[45,1,45,3],[46,1,46,3],[47,1,47,3],[48,1,48,3],[55,0,55,1],[56,0,56,1],[57,0,57,1],[63,0,63,4],[61,0,61,1],[62,0,62,1],[127,9,127,12],[129,9,129,12],[84,0,84,7],[85,0,94,7],[14,5,14,7],[28,1,28,2],[65,0,65,7],[73,0,73,7],[74,0,81,7],[71,1,71,7],[119,6,119,7],[69,1,69,7],[97,0,97,7],[49,1,49,3],[62,2,62,3],[50,1,50,3],[168,3,168,4],[59,2,59,3],[60,2,60,3],[61,2,61,3],[167,3,167,4],[117,1,117,7],[120,1,120,7],[123,1,123,7],[110,0,110,7],[96,0,96,7],[98,0,108,7],[134,0,134,7],[114,1,114,7],[67,1,67,7],[141,0,141,7],[161,0,161,6],[0,0,0,7],[39,1,39,3],[40,1,40,3],[41,1,41,3],[12,0,12,7],[14,1,14,2],[16,1,16,2],[18,1,18,2],[22,4,22,7],[7,0,7,7],[22,1,22,2],[24,4,24,7],[30,4,30,5],[4,0,4,7],[29,4,29,7],[5,0,5,7],[1,0,1,7],[140,0,140,2],[135,0,135,7],[136,0,136,7],[137,0,137,7],[138,0,138,7],[139,0,139,7],[54,2,54,3],[42,1,42,3],[43,1,43,3],[8,0,8,7],[19,4,19,7],[54,0,54,1],[20,1,20,2],[25,4,25,7],[10,0,10,5]]}
["Demande d'aide financière au Fonds d'intervention pour le développement du secteur agroalimentaire (FIDSA)"]
["Formulaire de demande individuelle"]
[]
["Points importants:"]
["• Afin de déterminer si vous êtes admissible, veuillez consulter le cahier des mesures."]
["• Nous vous invitons à enregistrer votre formulaire sur votre ordinateur avant de commencer la rédaction pour éviter de perdre les informations."]
["• Vous visez l'aide à la formation pour la relève dans la mesure 1.D. Veuillez contacter Gaspésie Gourmande pour le recevoir au courriel suivant:",null,null,null,null,null,"fidsa@gaspesiegourmande.com"]
["• Pour toutes questions sur le formulaire, vous pouvez contacter Gaspésie Gourmande pour recevoir du soutien technique. "]
["• Pour recevoir de l'aide pour remplir votre formulaire, vous pouvez contacter votre MRC."]
[]
["Instructions: Pour bien completer la demande, veuillez remplir les cellules obligatoire jaune avec un contour rouge, ainsi que la section sur le financement du projet.",null,null,null,null,null,"À remplir","Remplis"]
[]
["Renseignements sur le demandeur et son représentant"]
[]
["Nom de l'entreprise",null,null,null,"Statut",null,null,null,null,1]
[]
["Répondant",null,null,null,"Production principale",null,null,null,null,1]
[]
["Adresse",null,null,null,"Quelle situation représente le mieux l'entreprise"]
[null,null,null,null,null,null,null,null,null,1,null,{"$f":"_xlfn.IFS(E26=LISTES!B128,25000,DEMANDE!E26=LISTES!B129,20000,DEMANDE!E26=LISTES!B127,20000,E26=\"\",20000)","v":20000}]
["Ville"]
[null,null,null,null,"Formation complétée et reconnue par la Financière agricole du Québec"]
["Municipalité où se déroule le projet"]
[]
["Code postal",null,null,null,"Catégorie type de relève (page 11 du cahier des mesures)",null,null,null,null,1]
[null,null,null,null,null,null,null,null,null,1,null,{"$f":"_xlfn.IFS(E31>0,25000,E31=\"\",20000)","v":20000}]
["Téléphone"]
[null,null,null,null,"Certification biologique ou précertification biologique"]
["Courriel"]
[null,null,null,null,"SI oui, avec quel organisme de certification?"]
["Numéro d'identification ministériel (NIM)"]
[]
["Propriétaire ou locataire du terrain"]
[]
["Titre du projet",null,null,null,null,null,null,null,null,1]
[]
[]
["Liste des investissements prévus"]
["Investissements","Mesure",null,null,"Coût","Aide financière potentielle","Date \nde début","Date \nde fin"]
[null,null,null,null,null,{"$f":"MIN((MAX($L$20,$L$26,(_xlfn.XLOOKUP(DEMANDE!B40,LISTES!$B$15:$B$25,LISTES!$G$15:$G$25,\"0\",0,1)))),(E40/2))","v":0},null,null,null,2]
[null,null,null,null,null,{"$f":"MIN((MAX($L$20,$L$26,(_xlfn.XLOOKUP(DEMANDE!B41,LISTES!$B$15:$B$25,LISTES!$G$15:$G$25,\"0\",0,1)))),(E41/2))","v":0},null,null,null,2]
[null,null,null,null,null,{"$f":"MIN((MAX($L$20,$L$26,(_xlfn.XLOOKUP(DEMANDE!B42,LISTES!$B$15:$B$25,LISTES!$G$15:$G$25,\"0\",0,1)))),(E42/2))","v":0},null,null,null,2]
[null,null,null,null,null,{"$f":"MIN((MAX($L$20,$L$26,(_xlfn.XLOOKUP(DEMANDE!B43,LISTES!$B$15:$B$25,LISTES!$G$15:$G$25,\"0\",0,1)))),(E43/2))","v":0},null,null,null,1]
[null,null,null,null,null,{"$f":"MIN((MAX($L$20,$L$26,(_xlfn.XLOOKUP(DEMANDE!B44,LISTES!$B$15:$B$25,LISTES!$G$15:$G$25,\"0\",0,1)))),(E44/2))","v":0},null,null,null,1]
[null,null,null,null,null,{"$f":"MIN((MAX($L$20,$L$26,(_xlfn.XLOOKUP(DEMANDE!B45,LISTES!$B$15:$B$25,LISTES!$G$15:$G$25,\"0\",0,1)))),(E45/2))","v":0},null,null,null,1]
[null,null,null,null,null,{"$f":"MIN((MAX($L$20,$L$26,(_xlfn.XLOOKUP(DEMANDE!B46,LISTES!$B$15:$B$25,LISTES!$G$15:$G$25,\"0\",0,1)))),(E46/2))","v":0},null,null,null,1]
[null,null,null,null,null,{"$f":"MIN((MAX($L$20,$L$26,(_xlfn.XLOOKUP(DEMANDE!B47,LISTES!$B$15:$B$25,LISTES!$G$15:$G$25,\"0\",0,1)))),(E47/2))","v":0},null,null,null,1]
[null,null,null,null,null,{"$f":"MIN((MAX($L$20,$L$26,(_xlfn.XLOOKUP(DEMANDE!B48,LISTES!$B$15:$B$25,LISTES!$G$15:$G$25,\"0\",0,1)))),(E48/2))","v":0},null,null,null,1]
[null,null,null,null,null,{"$f":"MIN((MAX($L$20,$L$26,(_xlfn.XLOOKUP(DEMANDE!B49,LISTES!$B$15:$B$25,LISTES!$G$15:$G$25,\"0\",0,1)))),(E49/2))","v":0},null,null,null,1]
[null,null,null,null,null,{"$f":"MIN((MAX($L$20,$L$26,(_xlfn.XLOOKUP(DEMANDE!B50,LISTES!$B$15:$B$25,LISTES!$G$15:$G$25,\"0\",0,1)))),(E50/2))","v":0},null,null,null,1]
["Total",null,null,null,{"$f":"SUM(E40:E50)","v":0},{"$f":"MIN(MAX(L20,L26),(SUM(F40:F50)))","v":0}]
["Aide maximale par projet de 20 000 $ (25 000$ pour les entreprises de la relève ou détenant une certification biologique)",null,null,null,null,{"$f":"MIN(F51,MAX(L20,L26))","v":0}]
[]
["Financement du projet (excluant les frais de gestion)"]
["Besoin de financement",null,"Organismes et programmes",null,"Statut du financement",{"$f":"E51","v":0},"Proportion","Cumul d'aide"]
["Aide financière FIDSA",null,null,null,null,{"$f":"F51","v":0},{"$f":"IFERROR(F56/F$55,\"\")","v":""},{"$f":"SUM(G56:G58)","v":0}]
["Autre aide financière non remboursable",null,null,null,null,null,{"$f":"IFERROR(F57/F$55,\"\")","v":""}]
["Autre aide financière non remboursable",null,null,null,null,null,""]
["Prime à l'établissement/Aide au démarrage",null,null,null,null,null,"",{"$f":"SUM(G59:G63)","v":0}]
["Emprunt",null,null,null,null,null,""]
["Emprunt",null,null,null,null,null,""]
["Autre ",null,null,null,null,null,""]
["Mise de fonds de l'entreprise/promoteur",null,null,null,null,null,""]
[null,null,null,null,null,{"$f":"SUM(F56:F63)","v":0},{"$f":"SUM(G56:G63)","v":0},{"$f":"SUM(H56:H62)","v":0}]
[]
["Choisir d'un à trois objectifs de votre projet qui sont en lien avec la planification stratégique 2023-2027 du secteur agroalimentaire"]
[]
["Objectif 1",null,null,null,null,null,null,null,null,1]
[]
["Objectif 2",null,null,null,null,null,null,null,null,1]
[]
["Objectif 3",null,null,null,null,null,null,null,null,1]
[]
["Entreprise (brève description des promoteurs, volumes et types de productions, activités de transformation, mise en marché, etc.) "]
[]
[]
[]
[]
[]
[]
[]
[]
[]
[]
["Projet (problématique, objectifs poursuivis, ...)"]
[]
[]
[]
[]
[]
[]
[]
[]
[]
[]
[]
["Impact du projet sur l'entreprise"]
["*Démontrez que le projet  amènera des impacts positifs majeurs sur l'entreprise. Les gains peuvent être en productivité, en bien-être des animaux, en temps, etc.  Pour du renouvellement de machineries/équipements, les nouveux équipement doivent amener un gain de productivité (en argent ou en temps) d'au moins 50%. "]
[]
[]
[]
[]
[]
[]
[]
[]
[]
[]
[]
[]
["Estimation des effets de votre projet sur la santé financière de votre entreprise"]
["Chiffres d'affaires de votre entreprise dans vos derniers états financiers"]
[]
["Revenus annuels supplémentaires générés par le projet (approximatif)",null,null,null,null,null,{"$f":"IF(F114=\"\",\"\",IF(F112=\"\",\"\",(F114/F112)))","v":""}]
["Principaux postes de revenus impactés  :"]
[]
["Dépenses annuelles supplémentaires générées par le projet (approximatif)",null,null,null,null,null,{"$f":"IF(F117=\"\",\"\",IF(F112=\"\",\"\",(F117/F112)))","v":""}]
["Principaux postes de dépenses impactés  :"]
[]
["Économies annuelles générées par le projet (approximatif)",null,null,null,null,null,{"$f":"IF(F120=\"\",\"\",IF(F112=\"\",\"\",(F120/F112)))","v":""}]
["Principaux postes de dépenses impactés  :"]
[]
["Est-ce que ce projet vous fera économiser du temps?",null,null,null,null,"Si oui, combien d'heures par année environ?  ",null,null,null,{"$f":"IF(C123=\"Non\",2,_xlfn.IFS(COUNTBLANK(G123)+COUNTBLANK(B124)=0,2,COUNTBLANK(G123)+COUNTBLANK(B124)>0,1))","v":1}]
["De quelle façon?"]
[]
["Montant du projet financé par emprunt",null,"* Inscrire 0 si pas de prêt",null,null,"Marge brute annuelle dégagée par votre projet :",{"$f":"F114-F117+F120","v":0},null,null,null,null,null,"Marge brute du projet / chiffre d'affaires de l'entreprise : ",{"$f":"IFERROR(G126/F112,\"\")","v":""}]
[null,null,null,"*Normalement, la marge brute dégagée par le projet doit être positive."]
["Durée du prêt en années 1",null,"* Inscrire 0 si pas de prêt",null,null,"Remboursements annuels du prêt liés au projet",{"$f":"IFERROR(-(PMT(B130/12,B128*12,B126))*12,\"\")","v":""},null,null,"Solde de trésorerie annuel lié au projet 2 :",null,null,null,{"$f":"IFERROR(F114-F117+F120-G128,\"\")","v":""}]
["1. Inscrire la durée de vie utile si aucun prêt n'est lié au projet",null,null,null,null,null,null,null,null,null,null,null,"2. Marge brute du projet - remboursement annuel sur la partie financée"]
["Taux d'intérêt sur emprunt",null,"* Inscrire 0 si pas de prêt",null,null,null,null,null,null,"Rendement du projet à la fin de l'amortissement 3 :",null,null,null,{"$f":"IFERROR((FV((0)/12,B128*12,-N128/12))/F64,\"\")","v":""}]
[null,null,null,null,null,null,null,null,null,null,null,null,"3. Valeur des soldes de trésorerie cumulés sur la durée du projet / Coût total du projet"]
[]
[]
[]
["Documents à joindre à votre demande "]
["Montage financier confirmé ou en voie de l’être (ex. : certificat de prêt, confirmation de disponibilité de fonds, confirmation d’une subvention, etc.);"]
["États financiers comptables ou formulaire T2042 de votre déclaration fiscale dans le cas d'un individu;"]
["Soumission pour équipement, matériel ou étude d'une valeur de plus de 2 000 $;"]
["La version complétée du formulaire en format Excel;"]
["Une copie signée de votre demande en version pdf ou format image (jpeg ou autre);"]
["Tous les documents exigés dans la section « à considérer » de la mesure correspondante au ",null,null,"Cahier des mesures"]
["Veuillez noter que des documents supplémentaires pourraient vous être exigés au besoin."]
[]
["Engagement du demandeur et signature"]
[]
["Je certifie que les renseignements inscrits dans le formulaire et dans tous les documents fournis sont vrais, complets et exacts."]
[]
["Je comprends que la présente demande ne me garantit pas l’obtention d’une aide financière pour mon projet et que cette aide est conditionnelle à l’acceptation"]
["du projet par le comité de gestion de l’entente sectorielle sous réserve des disponibilités budgétaires."]
[]
["Je consens à ce que les renseignements demandés et recueillis dans le contexte de ma demande financière soient\n partagés avec les organismes partenaires "]
["membres du comité de gestion et du comité de recommandations de l’entente sectorielle."]
[]
["Je consens à ce que les partenaires impliqués (FADQ, institution financière, UPA ou autre) communiquent au personnel du MAPAQ des informations relatives"]
["à mon entreprise et pouvant être utiles ou nécessaires à l'analyse de mon projet."]
[]
["Je reconnais que mon projet est conforme aux lois ou aux règlements applicables et en vigueur, notamment en ce qui concerne la salubrité, l'innocuité des "]
["aliments et la sécurité, la protection du territoire agricole ainsi que l’environnement."]
[]
["Je certifie que je suis mandaté(e) pour signer cette demande d'aide financière et que je peux en faire la preuve sur demande."]
[]
["Est-ce que toutes les cellules ont été remplis pour compléter la demande? Si non, remplir les cellules jaunes avec un contour rouge:",null,null,null,null,null,null,{"$f":"IF(_xlfn.IFS((COUNTBLANK(B15)+COUNTBLANK(B17)+COUNTBLANK(B19)+COUNTBLANK(B21)+COUNTBLANK(B25)+COUNTBLANK(B31)+COUNTBLANK(B33)+COUNTBLANK(B23)+COUNTBLANK(A164)+COUNTBLANK(F15)+COUNTBLANK(F17)+COUNTBLANK(E20)+COUNTBLANK(E23)+COUNTBLANK(E29)+COUNTBLANK(B27)+COUNTBLANK(B29)+COUNTBLANK(B35)+COUNTBLANK(A40)+COUNTBLANK(B40)+COUNTBLANK(E40)+COUNTBLANK(G40)+COUNTBLANK(H40)+COUNTBLANK(B68)+COUNTBLANK(A75)+COUNTBLANK(A86)+COUNTBLANK(A99)+COUNTBLANK(F112)+COUNTBLANK(F114)+COUNTBLANK(B115)+COUNTBLANK(F117)+COUNTBLANK(B118)+COUNTBLANK(F120)+COUNTBLANK(B121)+COUNTBLANK(C123)+COUNTBLANK(B126)+COUNTBLANK(B128)+COUNTBLANK(B130))>0,1,F64=F56,1,J123=1,1,(COUNTBLANK(B15)+COUNTBLANK(B17)+COUNTBLANK(B19)+COUNTBLANK(B21)+COUNTBLANK(B25)+COUNTBLANK(B31)+COUNTBLANK(B33)+COUNTBLANK(B23)+COUNTBLANK(A164)+COUNTBLANK(F15)+COUNTBLANK(F17)+COUNTBLANK(E20)+COUNTBLANK(E23)+COUNTBLANK(E29)+COUNTBLANK(B27)+COUNTBLANK(B29)+COUNTBLANK(B35)+COUNTBLANK(A40)+COUNTBLANK(B40)+COUNTBLANK(E40)+COUNTBLANK(G40)+COUNTBLANK(H40)+COUNTBLANK(B68)+COUNTBLANK(A75)+COUNTBLANK(A86)+COUNTBLANK(A99)+COUNTBLANK(F112)+COUNTBLANK(F114)+COUNTBLANK(B115)+COUNTBLANK(F117)+COUNTBLANK(B118)+COUNTBLANK(F120)+COUNTBLANK(B121)+COUNTBLANK(C123)+COUNTBLANK(B126)+COUNTBLANK(B128)+COUNTBLANK(B130))=0,2,F64>F56,2,J123=2,2)=1,\"NON\",\"OUI\")","v":"NON"}]
[]
[{"$f":"IF(B17=\"\",\"\",B17)","v":""}]
["Prénom et nom en lettres moulées"]
[]
[]
[]
["Signature du demandeur",null,null,"Date"]

{"sheet":"ANALYSE","index":1,"n_rows":185,"n_cols":14,"rows_kept":185,"cut":false,"hidden":true,"merged":[[184,0,184,3],[173,1,173,3],[176,0,176,3],[177,0,177,3],[178,1,178,3],[179,0,179,3],[181,0,181,1],[182,0,182,1],[180,0,180,1],[68,0,68,1],[69,0,69,1],[63,2,63,3],[69,2,69,3],[183,0,183,3],[63,0,63,1],[64,0,64,1],[65,0,65,1],[65,2,65,3],[66,2,66,3],[172,0,172,3],[162,3,162,4],[26,0,26,8],[27,5,27,8],[27,0,27,4],[0,0,0,8],[11,0,11,8],[10,0,10,8],[4,7,4,8],[5,7,5,8],[6,7,6,8],[7,7,7,8],[28,14,28,16],[41,14,41,16],[93,0,93,8],[55,0,58,8],[87,0,90,8],[66,0,66,1],[67,0,67,1],[61,0,61,8],[62,2,62,3],[64,2,64,3],[62,0,62,1],[63,8,65,8],[71,2,71,3],[71,0,71,1],[67,2,67,3],[68,2,68,3],[95,6,95,8],[156,1,156,2],[70,2,70,3],[170,2,170,3],[171,1,171,3],[159,1,159,2],[142,0,145,8],[96,6,107,8],[139,0,139,8],[109,6,109,8],[134,0,137,8],[121,6,121,8],[147,5,147,8],[70,0,70,1],[162,6,162,7]]}
["Formulaire d'analyse de projet"]
[]
["Titre du projet: ",{"$f":"IF(DEMANDE!B35=\"\",\"\",DEMANDE!B35)","v":""}]
[]
["Nom de l'entreprise",{"$f":"IF(DEMANDE!B15=\"\",\"\",DEMANDE!B15)","v":""},null,"NIM",{"$f":"IF(DEMANDE!B31=\"\",\"\",DEMANDE!B31)","v":""},null,"Numéro de projet : "]
["Répondant",{"$f":"IF(DEMANDE!B17=\"\",\"\",DEMANDE!B17)","v":""},null,"Téléphone",{"$f":"IF(DEMANDE!B27=\"\",\"\",DEMANDE!B27)","v":""},null,"Date de réception du projet: "]
["Adresse",{"$f":"IF(DEMANDE!B19=\"\",\"\",DEMANDE!B19)","v":""},null,"Courriel",{"$f":"IF(DEMANDE!B29=\"\",\"\",DEMANDE!B29)","v":""},null,"Répondant MAPAQ : "]
["Ville",{"$f":"IF(DEMANDE!B21=\"\",\"\",DEMANDE!B21)","v":""},null,null,null,null,"Aide déjà reçue dans le FIDSA:"]
["Code postal",{"$f":"IF(DEMANDE!B25=\"\",\"\",DEMANDE!B25)","v":""}]
[]
["Admissibilité de la demande et du promoteur"]
[]
["Entreprise enregistrée au MAPAQ (détient un NIM)",null,null,null,null,null,null,null,null,null,null,null,null,1]
[]
["Projet localisé sur le territoire de la Gaspésie ou des Îles-de-la-Madeleine",null,null,null,null,null,null,null,null,null,null,null,null,1]
[]
["L'entreprise est propriétaire de la parcelle sur laquelle se fera le projet ou détient un bail",null,null,null,null,null,null,null,null,null,null,null,null,1]
[]
["Tous les documents exigés dans la section « à considérer » de la mesure correspondante au Cahier des mesures sont déposés",null,null,null,null,null,null,null,null,null,null,null,null,1]
[]
["Au moins un investissement présenté dans la demande est admissible à une aide",null,null,null,null,null,null,null,null,null,null,null,null,1]
[]
["Présences de soumissions pour toutes les dépenses de plus de 2 000 $ "]
[null,null,null,null,null,null,null,null,null,null,null,null,null,1]
["Le montage financier est confirmé ou en voie de l'être "]
[null,null,null,null,null,null,null,null,null,null,null,null,null,1]
["Investissements prévus"]
["Demande du client",null,null,null,null,"Lettre d'offre"]
["Investissements","Mesures choisies par le client","Coût prévue","Aide financière","Échance prévue par le client","Mesures proposées","Coûts totaux","Coût admissible","Aide financière"]
[{"$f":"IF(DEMANDE!A40=\"\",\"\",DEMANDE!A40)","v":""},{"$f":"IF(A30=\"\",\"\",IFERROR(VLOOKUP(M30,LISTES!$A$15:$B$25,2),\"\"))","v":""},{"$f":"DEMANDE!E40","v":0},{"$f":"DEMANDE!F40","v":0},{"$f":"IF(DEMANDE!H40=\"\",\"\",DEMANDE!H40)","v":""},{"$f":"IF(DEMANDE!B40>0,DEMANDE!B40,\"-\")","v":"-"},null,null,{"$f":"MIN(DEMANDE!$L$20,DEMANDE!$L$26,(H30*0.5))","v":0},null,null,null,{"$f":"DEMANDE!J40","v":2},1]
[{"$f":"IF(DEMANDE!A41=\"\",\"\",DEMANDE!A41)","v":""},{"$f":"IF(A31=\"\",\"\",IFERROR(VLOOKUP(M31,LISTES!$A$15:$B$25,2),\"\"))","v":""},{"$f":"DEMANDE!E41","v":0},{"$f":"DEMANDE!F41","v":0},{"$f":"IF(DEMANDE!H41=\"\",\"\",DEMANDE!H41)","v":""},{"$f":"IF(DEMANDE!B41>0,DEMANDE!B41,\"-\")","v":"-"},null,null,{"$f":"MIN(DEMANDE!$L$20,DEMANDE!$L$26,(H31*0.5))","v":0},null,null,null,{"$f":"DEMANDE!J41","v":2},1]
[{"$f":"IF(DEMANDE!A42=\"\",\"\",DEMANDE!A42)","v":""},{"$f":"IF(A32=\"\",\"\",IFERROR(VLOOKUP(M32,LISTES!$A$15:$B$25,2),\"\"))","v":""},{"$f":"DEMANDE!E42","v":0},{"$f":"DEMANDE!F42","v":0},{"$f":"IF(DEMANDE!H42=\"\",\"\",DEMANDE!H42)","v":""},{"$f":"IF(DEMANDE!B42>0,DEMANDE!B42,\"-\")","v":"-"},null,null,{"$f":"MIN(DEMANDE!$L$20,DEMANDE!$L$26,(H32*0.5))","v":0},null,null,null,{"$f":"DEMANDE!J42","v":2},1]
[{"$f":"IF(DEMANDE!A43=\"\",\"\",DEMANDE!A43)","v":""},{"$f":"IF(A33=\"\",\"\",IFERROR(VLOOKUP(M33,LISTES!$A$15:$B$25,2),\"\"))","v":""},{"$f":"DEMANDE!E43","v":0},{"$f":"DEMANDE!F43","v":0},{"$f":"IF(DEMANDE!H43=\"\",\"\",DEMANDE!H43)","v":""},{"$f":"IF(DEMANDE!B43>0,DEMANDE!B43,\"-\")","v":"-"},null,null,{"$f":"MIN(DEMANDE!$L$20,DEMANDE!$L$26,(H33*0.5))","v":0},null,null,null,{"$f":"DEMANDE!J43","v":1},1]
[{"$f":"IF(DEMANDE!A44=\"\",\"\",DEMANDE!A44)","v":""},{"$f":"IF(A34=\"\",\"\",IFERROR(VLOOKUP(M34,LISTES!$A$15:$B$25,2),\"\"))","v":""},{"$f":"DEMANDE!E44","v":0},{"$f":"DEMANDE!F44","v":0},{"$f":"IF(DEMANDE!H44=\"\",\"\",DEMANDE!H44)","v":""},{"$f":"IF(DEMANDE!B44>0,DEMANDE!B44,\"-\")","v":"-"},null,null,{"$f":"MIN(DEMANDE!$L$20,DEMANDE!$L$26,(H34*0.5))","v":0},null,null,null,{"$f":"DEMANDE!J44","v":1},1]
[{"$f":"IF(DEMANDE!A45=\"\",\"\",DEMANDE!A45)","v":""},{"$f":"IF(A35=\"\",\"\",IFERROR(VLOOKUP(M35,LISTES!$A$15:$B$25,2),\"\"))","v":""},{"$f":"DEMANDE!E45","v":0},{"$f":"DEMANDE!F45","v":0},{"$f":"IF(DEMANDE!H45=\"\",\"\",DEMANDE!H45)","v":""},{"$f":"IF(DEMANDE!B45>0,DEMANDE!B45,\"-\")","v":"-"},null,null,{"$f":"MIN(DEMANDE!$L$20,DEMANDE!$L$26,(H35*0.5))","v":0},null,null,null,{"$f":"DEMANDE!J45","v":1},1]
[{"$f":"IF(DEMANDE!A46=\"\",\"\",DEMANDE!A46)","v":""},{"$f":"IF(A36=\"\",\"\",IFERROR(VLOOKUP(M36,LISTES!$A$15:$B$25,2),\"\"))","v":""},{"$f":"DEMANDE!E46","v":0},{"$f":"DEMANDE!F46","v":0},{"$f":"IF(DEMANDE!H46=\"\",\"\",DEMANDE!H46)","v":""},{"$f":"IF(DEMANDE!B46>0,DEMANDE!B46,\"-\")","v":"-"},null,null,{"$f":"MIN(DEMANDE!$L$20,DEMANDE!$L$26,(H36*0.5))","v":0},null,null,null,{"$f":"DEMANDE!J46","v":1},1]
[{"$f":"IF(DEMANDE!A47=\"\",\"\",DEMANDE!A47)","v":""},{"$f":"IF(A37=\"\",\"\",IFERROR(VLOOKUP(M37,LISTES!$A$15:$B$25,2),\"\"))","v":""},{"$f":"DEMANDE!E47","v":0},{"$f":"DEMANDE!F47","v":0},{"$f":"IF(DEMANDE!H47=\"\",\"\",DEMANDE!H47)","v":""},{"$f":"IF(DEMANDE!B47>0,DEMANDE!B47,\"-\")","v":"-"},null,null,{"$f":"MIN(DEMANDE!$L$20,DEMANDE!$L$26,(H37*0.5))","v":0},null,null,null,{"$f":"DEMANDE!J47","v":1},1]
[{"$f":"IF(DEMANDE!A48=\"\",\"\",DEMANDE!A48)","v":""},{"$f":"IF(A38=\"\",\"\",IFERROR(VLOOKUP(M38,LISTES!$A$15:$B$25,2),\"\"))","v":""},{"$f":"DEMANDE!E48","v":0},{"$f":"DEMANDE!F48","v":0},{"$f":"IF(DEMANDE!H48=\"\",\"\",DEMANDE!H48)","v":""},{"$f":"IF(DEMANDE!B48>0,DEMANDE!B48,\"-\")","v":"-"},null,null,{"$f":"MIN(DEMANDE!$L$20,DEMANDE!$L$26,(H38*0.5))","v":0},null,null,null,{"$f":"DEMANDE!J48","v":1},1]
[{"$f":"IF(DEMANDE!A49=\"\",\"\",DEMANDE!A49)","v":""},{"$f":"IF(A39=\"\",\"\",IFERROR(VLOOKUP(M39,LISTES!$A$15:$B$25,2),\"\"))","v":""},{"$f":"DEMANDE!E49","v":0},{"$f":"DEMANDE!F49","v":0},{"$f":"IF(DEMANDE!H49=\"\",\"\",DEMANDE!H49)","v":""},{"$f":"IF(DEMANDE!B49>0,DEMANDE!B49,\"-\")","v":"-"},null,null,{"$f":"MIN(DEMANDE!$L$20,DEMANDE!$L$26,(H39*0.5))","v":0},null,null,null,{"$f":"DEMANDE!J49","v":1},1]
[{"$f":"IF(DEMANDE!A50=\"\",\"\",DEMANDE!A50)","v":""},{"$f":"IF(A40=\"\",\"\",IFERROR(VLOOKUP(M40,LISTES!$A$15:$B$25,2),\"\"))","v":""},{"$f":"DEMANDE!E50","v":0},{"$f":"DEMANDE!F50","v":0},{"$f":"IF(DEMANDE!H50=\"\",\"\",DEMANDE!H50)","v":""},{"$f":"IF(DEMANDE!B50>0,DEMANDE!B50,\"-\")","v":"-"},null,null,{"$f":"MIN(DEMANDE!$L$20,DEMANDE!$L$26,(H40*0.5))","v":0},null,null,null,{"$f":"DEMANDE!J50","v":1},1]
[null,null,{"$f":"DEMANDE!E51","v":0},{"$f":"DEMANDE!F51","v":0},null,null,{"$f":"SUM(G30:G40)","v":0},{"$f":"SUM(H30:H40)","v":0},{"$f":"MIN(DEMANDE!L20,DEMANDE!L26,(SUM(I30:I40)))","v":0}]
["Complexité du projet","Faible",{"$f":"C41*F42","v":0},{"$f":"D41*F42","v":0},null,null,{"$f":"G41*F42","v":0},{"$f":"H41*F42","v":0},{"$f":"I41*F42","v":0}]
[null,null,null,{"$f":"MIN(DEMANDE!L20,DEMANDE!L26,(D41+D42))","v":0},null,null,null,null,{"$f":"MIN(DEMANDE!L20,DEMANDE!L26,(I41+I42))","v":0}]
[null,null,null,null,null,"*Choisis par le comité de gestion"]
["Échance prévue par l'analyste"]
[]
["Les estimations de coûts semblent raisonnables relativement à la nature des investissements prévus.",null,null,null,null,null,null,null,null,null,null,null,null,1]
[]
["Les investissements semblent justifiés compte tenu de la nature et de la situation de l'entreprise.",null,null,null,null,null,null,null,null,null,null,null,null,1]
[]
["Les échéances semblent réalistes.",null,null,null,null,null,null,null,null,null,null,null,null,1]
[]
["Appréciation globale de l'analyse pour la partie Investissements.",null,null,null,null,null,"/ 20",null,null,null,null,null,null,1]
[]
["Commentaires de l'analyste"]
[]
[]
[]
[]
[]
[]
["Financement"]
["Besoin de financement",null,"Organisme",null,"Statut","Prévu","Proposé","Proportion","Cumul d'aide"]
["Aide financière FIDSA",null,null,null,"Recommandé",{"$f":"DEMANDE!F56","v":0},{"$f":"I41","v":0},{"$f":"IFERROR(G64/$G$69,\"\")","v":""},{"$f":"SUM(H64:H67)","v":0},null,null,null,null,4]
["Autre aide financière",null,{"$f":"IF(DEMANDE!C57=\"\",\"\",DEMANDE!C57)","v":""},{"$f":"DEMANDE!D57","v":0},{"$f":"IF(DEMANDE!E57>0,DEMANDE!E57,\"-\")","v":"-"},{"$f":"DEMANDE!F57","v":0},null,"",null,null,null,null,null,1]
["Autre aide financière",null,{"$f":"IF(DEMANDE!C58=\"\",\"\",DEMANDE!C58)","v":""},{"$f":"DEMANDE!D58","v":0},{"$f":"IF(DEMANDE!E58>0,DEMANDE!E58,\"-\")","v":"-"},{"$f":"DEMANDE!F58","v":0},null,"",null,null,null,null,null,1]
["Prime à l'établissement/Aide au démarrage",null,{"$f":"IF(DEMANDE!C59=\"\",\"\",DEMANDE!C59)","v":""},{"$f":"DEMANDE!D59","v":0},{"$f":"IF(DEMANDE!E59>0,DEMANDE!E59,\"-\")","v":"-"},{"$f":"DEMANDE!F59","v":0},null,"",null,null,null,null,null,1]
["Emprunt",null,{"$f":"IF(DEMANDE!C60=\"\",\"\",DEMANDE!C60)","v":""},{"$f":"DEMANDE!D60","v":0},{"$f":"IF(DEMANDE!E60>0,DEMANDE!E60,\"-\")","v":"-"},{"$f":"DEMANDE!F60","v":0},null,"",null,null,null,null,null,1]
["Emprunt",null,{"$f":"IF(DEMANDE!C61=\"\",\"\",DEMANDE!C61)","v":""},{"$f":"DEMANDE!D61","v":0},{"$f":"IF(DEMANDE!E61>0,DEMANDE!E61,\"-\")","v":"-"},{"$f":"DEMANDE!F61","v":0},null,"",null,null,null,null,null,1]
["Autre",null,{"$f":"IF(DEMANDE!C62=\"\",\"\",DEMANDE!C62)","v":""},{"$f":"DEMANDE!D62","v":0},{"$f":"IF(DEMANDE!E62>0,DEMANDE!E62,\"-\")","v":"-"},{"$f":"DEMANDE!F62","v":0},null,"",null,null,null,null,null,1]
["Mise de fonds de l'entreprise/promoteur",null,null,null,{"$f":"IF(DEMANDE!E63>0,DEMANDE!E63,\"-\")","v":"-"},{"$f":"DEMANDE!F63","v":0},null,"",null,null,null,null,null,4]
[{"$f":"IF(A41=\"\",\"\",A41)","v":""},null,null,null,null,{"$f":"SUM(F64:F71)","v":0},{"$f":"SUM(G64:G71)","v":0},{"$f":"SUM(H64:H71)","v":0},{"$f":"IFERROR(I64+#REF!,\"\")","v":""}]
[null,null,null,null,null,"Total des investissements (H39) :",{"$f":"H41","v":0}]
[]
["Proportion du financement recommandé ou confirmé",null,{"$f":"SUMIF($N$64:$N$71,4,$H$64:$H$71)","v":0},null,"Importance de la mise de fonds relativement au chiffre d'affaires",null,null,{"$f":"IFERROR(G71/DEMANDE!F112,\"\")","v":""}]
["Proportion du financement en cours d'analyse",null,{"$f":"SUMIF(N64:N71,3,H64:H71)","v":0},null,null,null,"Coût de l'emprunt (frais & intérêts)  / Coût du projet   ",{"$f":"IFERROR(((-(CUMIPMT(DEMANDE!B130/12,DEMANDE!B128*12,(G68+G69),1,DEMANDE!B128*12,0))+800)/G72),\"\")","v":""}]
["Proportion du financement non demandé",null,{"$f":"SUMIF($N$64:$N$71,2,$H$64:$H$71)+SUMIF($N$64:$N$71,1,$H$64:$H$71)","v":0}]
[]
["Le financement du projet exploite bien les diverses possibilités offertes dans le secteur (subventions et prêts garantis)",null,null,null,null,null,null,null,null,null,null,null,null,1]
[]
["Le financement du projet est bien structuré et ne constitue pas un risque à court terme pour les liquidités de l'entreprise ",null,null,null,null,null,null,null,null,null,null,null,null,1]
[]
["Le promoteur a des solutions à sa portée en cas de dépassement de coûts (réinjection de fonds, capacité d'emprunt, etc.)",null,null,null,null,null,null,null,null,null,null,null,null,1]
[]
["Appréciation globale de l'analyse pour la partie Financement.",null,null,null,null,null,"/ 15"]
[]
["Commentaires de l'analyste"]
[]
[]
[]
[]
[]
[]
["Effets du projet sur la santé financière de l'entreprise"]
[]
["Chiffres d'affaires des derniers états financiers",null,{"$f":"DEMANDE!F112","v":0},null,null,null,"Explications des résultats présentés"]
[]
["Revenus annuels supplémentaires générés",null,{"$f":"DEMANDE!F114","v":0},{"$f":"IFERROR(C98/C$96,0)","v":0}]
["De quelle façon?",{"$f":"IF(DEMANDE!B115=\"\",\"\",DEMANDE!B115)","v":""}]
[]
["Dépenses annuels supplémentaires générées",null,{"$f":"DEMANDE!F117","v":0},{"$f":"IFERROR(C101/C$96,0)","v":0}]
["De quelle façon?",{"$f":"IF(DEMANDE!B118=\"\",\"\",DEMANDE!B118)","v":""}]
[]
["Économies annuels  générées",null,{"$f":"DEMANDE!F120","v":0},{"$f":"IFERROR(C104/C$96,0)","v":0}]
["De quelle façon?",{"$f":"IF(DEMANDE!B121=\"\",\"\",DEMANDE!B121)","v":""}]
[]
["Marge brute dégagée par le projet :",null,{"$f":"C98-C101+C104","v":0},{"$f":"IFERROR(C107/C$96,0)","v":0}]
[""]
["Solde de trésorerie annuel lié au projet 2 :",null,{"$f":"IFERROR(C107-B122-DEMANDE!G128,\"\")","v":""},{"$f":"IFERROR(C109/G41,0%)","v":0}]
["2. Marge brute du projet - remboursement annuel sur la partie financée",null,null,null,null,null,"Résumé des états financiers"]
[]
["Rendement du projet à la fin de l'amortissement 3 :",null,null,{"$f":"IFERROR((FV((0%)/12,DEMANDE!B128*12,-C109/12,,1))/ANALYSE!G41,0)","v":0},null,"Produits"]
["3. Valeur des soldes de trésorerie cumulés sur la durée du projet / Coût total du projet",null,null,null,null,"Charges variables"]
[null,null,null,null,null,"Charges fixes"]
["Ce projet améliore-il l'efficacité du travail?",null,{"$f":"IF(DEMANDE!J123=1,\"\",IF(DEMANDE!J123=2,\"Oui\",\"Non\"))","v":""},{"$f":"DEMANDE!G123","v":0},"h économisées","Bénéfice net"]
["De quelle façon?",{"$f":"IF(DEMANDE!B124=\"\",\"\",DEMANDE!B124)","v":""},null,null,null,"Actifs ct"]
[null,null,null,null,null,"Actifs lt"]
["L'augmentation des revenus est intéressante et réaliste",null,null,null,null,"Passifs ct",null,null,null,null,null,null,null,1]
[null,null,null,null,null,"Passifs lt"]
["La diminution des dépenses est intéressante et réaliste",null,null,null,null,"Capitaux propres",null,null,null,null,null,null,null,1]
[]
["Le projet contribue à améliorer l'efficacité du travail",null,null,null,null,null,"Ratios",null,null,null,null,null,null,1]
[null,null,null,null,null,"Marge bénéficiaire (BN/Pr)",{"$f":"IFERROR(G115/G112,\"\")","v":""},{"$f":"IFERROR(H115/H112,\"\")","v":""},{"$f":"IFERROR(I115/I112,\"\")","v":""}]
["La marge brute est significative par rapport au chiffre d'affaires",null,null,null,null,"Endettement (P/A)",{"$f":"IFERROR((G118+G119)/(G116+G117),\"\")","v":""},{"$f":"IFERROR((H118+H119)/(H116+H117),\"\")","v":""},{"$f":"IFERROR((I118+I119)/(I116+I117),\"\")","v":""},null,null,null,null,1]
[null,null,null,null,null,"Liquidité générale (Act/Pct)",{"$f":"IFERROR((G116/G118),\"\")","v":""},{"$f":"IFERROR((H116/H118),\"\")","v":""},{"$f":"IFERROR((I116/I118),\"\")","v":""}]
["Le solde de trésorerie annuel est positif et conséquent avec le projet",null,null,null,null,"Rendement actifs  (BN/A)",{"$f":"IFERROR((G115/(G116+G117)),\"\")","v":""},{"$f":"IFERROR((H115/(H116+H117)),\"\")","v":""},{"$f":"IFERROR((I115/(I116+I117)),\"\")","v":""},null,null,null,null,1]
[null,null,null,null,null,"Rendement  capitaux (BN/CP)",{"$f":"IFERROR((G115/G120),\"\")","v":""},{"$f":"IFERROR((H115/H120),\"\")","v":""},{"$f":"IFERROR((I115/I120),\"\")","v":""}]
["Le projet présente un rendement intéressant",null,null,null,null,null,null,null,null,null,null,null,null,4]
[]
["Le projet contribue à la pérennité ou à la transférabilité de l'entreprise"]
[]
["Appréciation globale de l'analyse pour la partie Effet sur la santé financière de l'entreprise",null,null,null,null,null,null,"/ 40",null,null,null,null,null,4]
[]
["Commentaires de l'analyste"]
[]
[]
[]
[]
[]
["Recommandation"]
[]
["Commentaires ou conditions particulières"]
[]
[]
[]
[]
[]
["Pointage Évaluation du projet",{"$f":"G132+F85+F53","v":0},"/75",{"$f":"B148/75","v":0},null,"Liens du projet avec les objectifs de l'entente spécifique régionale"]
[]
[null,null,null,null,null,{"$f":"IF(VLOOKUP(DEMANDE!J68,LISTES!$A$29:$B$36,2)=0,\"\",VLOOKUP(DEMANDE!J68,LISTES!$A$29:$B$36,2))","v":""}]
[]
[null,null,null,null,null,{"$f":"IF(VLOOKUP(DEMANDE!J70,LISTES!$A$29:$B$36,2)=0,\"\",VLOOKUP(DEMANDE!J70,LISTES!$A$29:$B$36,2))","v":""}]
[]
[null,null,null,null,null,{"$f":"IF(VLOOKUP(DEMANDE!J72,LISTES!$A$29:$B$36,2)=0,\"\",VLOOKUP(DEMANDE!J72,LISTES!$A$29:$B$36,2))","v":""},null,null,null,null,null,null,null,1]
[]
[]
["Analyste :",{"$f":"IF(H7=\"\",\"\",H7)","v":""}]
[]
[]
["Signature"]
[]
[]
["Comité d'analyse"]
[]
[]
["Signature"]
[]
[]
[]
["À l'usage du MAPAQ"]
["Demande 1","Demandeur : ",{"$f":"DEMANDE!B15","v":0}]
["Titre du projet:",{"$f":"DEMANDE!B35","v":0}]
["Mesure :  "]
["Localisation : ",{"$f":"DEMANDE!B23","v":0}]
["$ demandée: ","$ recommandée: ","$ total du projet : ","Date de fin"]
[{"$f":"DEMANDE!F52","v":0},{"$f":"ANALYSE!I43","v":0},{"$f":"DEMANDE!E51","v":0},{"$f":"B45","v":"00:00:00"}]
["Description du projet :"]
["."]
["Analyse ",{"$f":"B157","v":""}]
["."]
["Pointage Évaluation du projet par l'analyste",null,{"$f":"'COMITÉ DE RECOMMANDATIONS'!B5","v":0},"/75"]
["Pointage Comité de recommandations",null,null,"/25"]
["Pointage Total",null,null,"/100"]
["Recommandation (s) du comité :"]
["$"]

{"sheet":"COMITÉ DE RECOMMANDATIONS","index":2,"n_rows":188,"n_cols":14,"rows_kept":188,"cut":false,"hidden":true,"merged":[[45,2,45,3],[0,0,0,8],[17,0,20,8],[22,0,22,6],[24,1,24,3],[43,2,43,3],[37,1,37,2],[42,6,44,6],[40,0,40,6],[42,0,42,1],[42,2,42,3],[44,0,44,1],[44,2,44,3],[53,0,53,6],[41,2,41,3],[41,0,41,1],[49,0,49,1],[49,2,49,3],[46,0,46,1],[46,2,46,3],[47,0,47,1],[47,2,47,3],[48,0,48,1],[48,2,48,3],[43,0,43,1],[50,0,50,3],[51,0,51,3],[45,6,49,6],[45,0,45,1]]}
["Recommandation du comité"]
[]
["Frais de gestion","Complexité:",{"$f":"ANALYSE!B42","v":"Faible"},0]
[]
["Pointage Évaluation du projet par l'analyste",{"$f":"ANALYSE!B148","v":0},"/75",{"$f":"B5/75","v":0}]
[]
["Pointage des critères de priorisation ",null,"/10",{"$f":"B7/10","v":0}]
[]
["Pointage Comité de recommandations",null,"/15",{"$f":"B9/15","v":0}]
[]
["Pointage Total",{"$f":"B5+B9","v":0},"/100",{"$f":"B11/100","v":0}]
[]
["Recommandation"]
[]
[]
[]
["Commentaires ou conditions particulières"]
[]
[]
[]
[]
[]
["Lettre d'offre "]
[]
["Investissements","Mesures proposées",null,null,"Coûts totaux","Coût admissible","Aide financière"]
[{"$f":"ANALYSE!A30","v":""},{"$f":"ANALYSE!F30","v":"-"},null,null,{"$f":"ANALYSE!G30","v":0},{"$f":"ANALYSE!H30","v":0},{"$f":"ANALYSE!I30","v":0}]
[{"$f":"ANALYSE!A31","v":""},{"$f":"ANALYSE!F31","v":"-"},null,null,{"$f":"ANALYSE!G31","v":0},{"$f":"ANALYSE!H31","v":0},{"$f":"ANALYSE!I31","v":0}]
[{"$f":"ANALYSE!A32","v":""},{"$f":"ANALYSE!F32","v":"-"},null,null,{"$f":"ANALYSE!G32","v":0},{"$f":"ANALYSE!H32","v":0},{"$f":"ANALYSE!I32","v":0}]
[{"$f":"ANALYSE!A33","v":""},{"$f":"ANALYSE!F33","v":"-"},null,null,{"$f":"ANALYSE!G33","v":0},{"$f":"ANALYSE!H33","v":0},{"$f":"ANALYSE!I33","v":0}]
[{"$f":"ANALYSE!A34","v":""},{"$f":"ANALYSE!F34","v":"-"},null,null,{"$f":"ANALYSE!G34","v":0},{"$f":"ANALYSE!H34","v":0},{"$f":"ANALYSE!I34","v":0}]
[{"$f":"ANALYSE!A35","v":""},{"$f":"ANALYSE!F35","v":"-"},null,null,{"$f":"ANALYSE!G35","v":0},{"$f":"ANALYSE!H35","v":0},{"$f":"ANALYSE!I35","v":0}]
[{"$f":"ANALYSE!A36","v":""},{"$f":"ANALYSE!F36","v":"-"},null,null,{"$f":"ANALYSE!G36","v":0},{"$f":"ANALYSE!H36","v":0},{"$f":"ANALYSE!I36","v":0}]
[{"$f":"ANALYSE!A37","v":""},{"$f":"ANALYSE!F37","v":"-"},null,null,{"$f":"ANALYSE!G37","v":0},{"$f":"ANALYSE!H37","v":0},{"$f":"ANALYSE!I37","v":0}]
[{"$f":"ANALYSE!A38","v":""},{"$f":"ANALYSE!F38","v":"-"},null,null,{"$f":"ANALYSE!G38","v":0},{"$f":"ANALYSE!H38","v":0},{"$f":"ANALYSE!I38","v":0}]
[{"$f":"ANALYSE!A39","v":""},{"$f":"ANALYSE!F39","v":"-"},null,null,{"$f":"ANALYSE!G39","v":0},{"$f":"ANALYSE!H39","v":0},{"$f":"ANALYSE!I39","v":0}]
[{"$f":"ANALYSE!A40","v":""},{"$f":"ANALYSE!F40","v":"-"},null,null,{"$f":"ANALYSE!G40","v":0},{"$f":"ANALYSE!H40","v":0},{"$f":"ANALYSE!I40","v":0}]
[null,null,null,null,{"$f":"SUM(E26:E36)","v":0},{"$f":"SUM(F26:F36)","v":0},0]
[null,"Frais de gestion (0 à 10 %)",null,{"$f":"D3","v":0},{"$f":"D38*E37","v":0},{"$f":"D38*G37","v":0},{"$f":"G37/2","v":0}]
[null,null,null,null,null,null,{"$f":"G37+G38","v":0}]
[]
[{"$f":"ANALYSE!A62","v":"Financement"}]
[{"$f":"ANALYSE!A63","v":"Besoin de financement"},null,{"$f":"ANALYSE!C63","v":"Organisme"},null,{"$f":"ANALYSE!G63","v":"Proposé"},{"$f":"ANALYSE!H63","v":"Proportion"},{"$f":"ANALYSE!I63","v":"Cumul d'aide"}]
[{"$f":"ANALYSE!A64","v":"Aide financière FIDSA"},{"$f":"ANALYSE!B64","v":0},null,{"$f":"ANALYSE!D64","v":0},{"$f":"ANALYSE!G64","v":0},{"$f":"ANALYSE!H64","v":""},{"$f":"SUM(F43:F45)","v":0}]
[{"$f":"ANALYSE!A65","v":"Autre aide financière"},{"$f":"ANALYSE!B65","v":0},{"$f":"ANALYSE!C65","v":""},{"$f":"ANALYSE!D65","v":0},{"$f":"ANALYSE!G65","v":0},{"$f":"ANALYSE!H65","v":""}]
[{"$f":"ANALYSE!A66","v":"Autre aide financière"},{"$f":"ANALYSE!B66","v":0},{"$f":"ANALYSE!C66","v":""},{"$f":"ANALYSE!D66","v":0},{"$f":"ANALYSE!G66","v":0},{"$f":"ANALYSE!H66","v":""}]
[{"$f":"ANALYSE!A67","v":"Prime à l'établissement/Aide au démarrage"},{"$f":"ANALYSE!B67","v":0},{"$f":"ANALYSE!C67","v":""},{"$f":"ANALYSE!D67","v":0},{"$f":"ANALYSE!G67","v":0},{"$f":"ANALYSE!H67","v":""},{"$f":"SUM(F46:F50)","v":0}]
[{"$f":"ANALYSE!A68","v":"Emprunt"},{"$f":"ANALYSE!B68","v":0},{"$f":"ANALYSE!C68","v":""},{"$f":"ANALYSE!D68","v":0},{"$f":"ANALYSE!G68","v":0},{"$f":"ANALYSE!H68","v":""}]
[{"$f":"ANALYSE!A69","v":"Emprunt"},{"$f":"ANALYSE!B69","v":0},{"$f":"ANALYSE!C69","v":""},{"$f":"ANALYSE!D69","v":0},{"$f":"ANALYSE!G69","v":0},{"$f":"ANALYSE!H69","v":""}]
[{"$f":"ANALYSE!A70","v":"Autre"},{"$f":"ANALYSE!B70","v":0},{"$f":"ANALYSE!C70","v":""},{"$f":"ANALYSE!D70","v":0},{"$f":"ANALYSE!G70","v":0},{"$f":"ANALYSE!H70","v":""}]
[{"$f":"ANALYSE!A71","v":"Mise de fonds de l'entreprise/promoteur"},{"$f":"ANALYSE!B71","v":0},null,{"$f":"ANALYSE!D71","v":0},{"$f":"ANALYSE!G71","v":0},{"$f":"ANALYSE!H71","v":""}]
["Total du financement",null,null,null,{"$f":"ANALYSE!G72","v":0},{"$f":"ANALYSE!H72","v":0},{"$f":"G47+G43","v":0}]
["Total des investissements",null,null,null,{"$f":"ANALYSE!G73","v":0}]
[]
["Membres du comité de recomandation qui étaient présents "]
["Bruno Lachance (MAPAQ)",null,"Stéphane Day (FUPAGÎM)"]
["Mélanie Guérette (MAPAQ)",null,"Denis Lévesque (MEIE)"]
["Jean-Michel Landry (MRC)",null,"Joel Dallaire (MAMH)"]
[null,null,null,null,null,"Johanne Michaud (Gaspésie Gourmande) "]
[]
[]
[]
[]
[]
[]
[]
[]
[]
[]
[]
[]
[]
[]
[]
[]
[]
[]
[]
[]
[]
[]
[]
[]
[]
[]
[]
[]
[]
[]
[]
[]
[]
[]
[]
[]
[]
[]
[]
[]
[]
[]
[]
[]
[]
[]
[]
[]
[]
[]
[]
[]
[]
[]
[]
[]
[]
[]
[]
[]
[]
[]
[]
[]
[]
[]
[]
[]
[]
[]
[]
[]
[]
[]
[]
[]
[]
[]
[]
[]
[]
[]
[]
[]
[]
[]
[]
[]
[]
[]
[]
[]
[]
[]
[]
[]
[]
[]
[]
[]
[]
[]
[]
[]
[]
[]
[]
[]
[]
[]
[]
[]
[]
[]
[]
[]
[]
[]
[]
[]
[]
[]
[]
[]
[]
[]
[]
[]
[]
[null,null,null,null,null,null,null,null,null,null,null,null,null,4]

{"sheet":"BILAN","index":3,"n_rows":79,"n_cols":16,"rows_kept":79,"cut":false,"hidden":true,"merged":[[11,10,11,11],[11,12,11,13],[11,14,11,15],[29,6,29,8],[0,0,0,8],[3,5,3,6],[2,5,2,6],[78,7,78,8],[75,2,75,4],[10,0,10,3],[10,4,10,6],[27,4,27,5],[26,3,26,5],[29,0,29,5],[23,0,25,0]]}
["Formulaire de bilan de projet et de réclamation"]
[]
["Nom de l'entreprise",null,{"$f":"IF(DEMANDE!B15=\"\",\"\",DEMANDE!B15)","v":""},null,"Numéro de projet : ",{"$f":"IF(ANALYSE!H5=\"\",\"\",ANALYSE!H5)","v":""}]
["Répondant",null,{"$f":"IF(DEMANDE!B17=\"\",\"\",DEMANDE!B17)","v":""},null,"Répondant MAPAQ :",{"$f":"IF(ANALYSE!H7=\"\",\"\",ANALYSE!H7)","v":""}]
["Adresse",null,{"$f":"IF(DEMANDE!B19=\"\",\"\",DEMANDE!B19)","v":""}]
["Ville",null,{"$f":"IF(DEMANDE!B21=\"\",\"\",DEMANDE!B21)","v":""},null,"Réclamation",1,{"$f":"L24","v":0}]
["Téléphone",null,{"$f":"IF(DEMANDE!B27=\"\",\"\",DEMANDE!B27)","v":""},null,"Réclamation",2,{"$f":"N24","v":0}]
[null,null,null,null,"Réclamation",3,{"$f":"P24","v":0}]
[null,null,null,null,null,null,{"$f":"SUM(G6:G8)","v":0}]
[]
["Coût prévue et aide financière estimée",null,null,null,"Coût et aide du projet réalisé"]
["No associé à l'investissement initial","Investissements prévus dans la demande","Coût d'acquisition prévue","Aide financière demandée","Investissements réalisés dans le projet","Coût d'acquisition réel","Aide financière demandée",null,null,null,"Réclamation 1",null,"Réclamation 2",null,"Réclamation 3"]
[1,{"$f":"ANALYSE!A30","v":""},{"$f":"DEMANDE!E40","v":0},{"$f":"DEMANDE!F40","v":0},null,{"$f":"SUMIF($A$32:$A$67,A13,$G$32:$G$67)","v":0},{"$f":"F13*0.5","v":0},null,null,null,{"$f":"SUMIFS($G$32:$G$67,$A$32:$A$67,$A13,$H$32:$H$67,1)","v":0},{"$f":"K13*(IF(DEMANDE!J40=3,60%,(IF(DEMANDE!J40=4,30%,50%))))","v":0},{"$f":"SUMIFS($G$32:$G$67,$A$32:$A$67,$A13,$H$32:$H$67,2)","v":0},{"$f":"M13*(IF(DEMANDE!L40=3,60%,(IF(DEMANDE!L40=4,30%,50%))))","v":0},{"$f":"SUMIFS($G$32:$G$67,$A$32:$A$67,$A13,$H$32:$H$67,3)","v":0},{"$f":"O13*(IF(DEMANDE!N40=3,60%,(IF(DEMANDE!N40=4,30%,50%))))","v":0}]
[2,{"$f":"ANALYSE!A31","v":""},{"$f":"DEMANDE!E41","v":0},{"$f":"DEMANDE!F41","v":0},null,{"$f":"SUMIF($A$32:$A$67,A14,$G$32:$G$67)","v":0},{"$f":"F14*0.5","v":0},null,null,null,0,{"$f":"K14*(IF(DEMANDE!J41=3,60%,(IF(DEMANDE!J41=4,30%,50%))))","v":0},0,{"$f":"M14*(IF(DEMANDE!L41=3,60%,(IF(DEMANDE!L41=4,30%,50%))))","v":0},0,{"$f":"O14*(IF(DEMANDE!N41=3,60%,(IF(DEMANDE!N41=4,30%,50%))))","v":0}]
[3,{"$f":"ANALYSE!A32","v":""},{"$f":"DEMANDE!E42","v":0},{"$f":"DEMANDE!F42","v":0},null,0,0,null,null,null,0,{"$f":"K15*(IF(DEMANDE!J42=3,60%,(IF(DEMANDE!J42=4,30%,50%))))","v":0},0,{"$f":"M15*(IF(DEMANDE!L42=3,60%,(IF(DEMANDE!L42=4,30%,50%))))","v":0},0,{"$f":"O15*(IF(DEMANDE!N42=3,60%,(IF(DEMANDE!N42=4,30%,50%))))","v":0}]
[4,{"$f":"ANALYSE!A33","v":""},{"$f":"DEMANDE!E43","v":0},{"$f":"DEMANDE!F43","v":0},null,0,0,null,null,null,0,{"$f":"K16*(IF(DEMANDE!J43=3,60%,(IF(DEMANDE!J43=4,30%,50%))))","v":0},0,{"$f":"M16*(IF(DEMANDE!L43=3,60%,(IF(DEMANDE!L43=4,30%,50%))))","v":0},0,{"$f":"O16*(IF(DEMANDE!N43=3,60%,(IF(DEMANDE!N43=4,30%,50%))))","v":0}]
[5,{"$f":"ANALYSE!A34","v":""},{"$f":"DEMANDE!E44","v":0},{"$f":"DEMANDE!F44","v":0},null,0,0,null,null,null,0,{"$f":"K17*(IF(DEMANDE!J44=3,60%,(IF(DEMANDE!J44=4,30%,50%))))","v":0},0,{"$f":"M17*(IF(DEMANDE!L44=3,60%,(IF(DEMANDE!L44=4,30%,50%))))","v":0},0,{"$f":"O17*(IF(DEMANDE!N44=3,60%,(IF(DEMANDE!N44=4,30%,50%))))","v":0}]
[6,{"$f":"ANALYSE!A35","v":""},{"$f":"DEMANDE!E45","v":0},{"$f":"DEMANDE!F45","v":0},null,0,0,null,null,null,0,{"$f":"K18*(IF(DEMANDE!J45=3,60%,(IF(DEMANDE!J45=4,30%,50%))))","v":0},0,{"$f":"M18*(IF(DEMANDE!L45=3,60%,(IF(DEMANDE!L45=4,30%,50%))))","v":0},0,{"$f":"O18*(IF(DEMANDE!N45=3,60%,(IF(DEMANDE!N45=4,30%,50%))))","v":0}]
[7,{"$f":"ANALYSE!A36","v":""},{"$f":"DEMANDE!E46","v":0},{"$f":"DEMANDE!F46","v":0},null,0,0,null,null,null,0,{"$f":"K19*(IF(DEMANDE!J46=3,60%,(IF(DEMANDE!J46=4,30%,50%))))","v":0},0,{"$f":"M19*(IF(DEMANDE!L46=3,60%,(IF(DEMANDE!L46=4,30%,50%))))","v":0},0,{"$f":"O19*(IF(DEMANDE!N46=3,60%,(IF(DEMANDE!N46=4,30%,50%))))","v":0}]
[8,{"$f":"ANALYSE!A37","v":""},{"$f":"DEMANDE!E47","v":0},{"$f":"DEMANDE!F47","v":0},null,0,0,null,null,null,0,{"$f":"K20*(IF(DEMANDE!J47=3,60%,(IF(DEMANDE!J47=4,30%,50%))))","v":0},0,{"$f":"M20*(IF(DEMANDE!L47=3,60%,(IF(DEMANDE!L47=4,30%,50%))))","v":0},0,{"$f":"O20*(IF(DEMANDE!N47=3,60%,(IF(DEMANDE!N47=4,30%,50%))))","v":0}]
[9,{"$f":"ANALYSE!A38","v":""},{"$f":"DEMANDE!E48","v":0},{"$f":"DEMANDE!F48","v":0},null,0,0,null,null,null,0,{"$f":"K21*(IF(DEMANDE!J48=3,60%,(IF(DEMANDE!J48=4,30%,50%))))","v":0},0,{"$f":"M21*(IF(DEMANDE!L48=3,60%,(IF(DEMANDE!L48=4,30%,50%))))","v":0},0,{"$f":"O21*(IF(DEMANDE!N48=3,60%,(IF(DEMANDE!N48=4,30%,50%))))","v":0}]
[10,{"$f":"ANALYSE!A39","v":""},{"$f":"DEMANDE!E49","v":0},{"$f":"DEMANDE!F49","v":0},null,0,0,null,null,null,0,{"$f":"K22*(IF(DEMANDE!J49=3,60%,(IF(DEMANDE!J49=4,30%,50%))))","v":0},0,{"$f":"M22*(IF(DEMANDE!L49=3,60%,(IF(DEMANDE!L49=4,30%,50%))))","v":0},0,{"$f":"O22*(IF(DEMANDE!N49=3,60%,(IF(DEMANDE!N49=4,30%,50%))))","v":0}]
[11,{"$f":"ANALYSE!A40","v":""},{"$f":"DEMANDE!E50","v":0},{"$f":"DEMANDE!F50","v":0},null,0,0,null,null,null,0,{"$f":"K23*(IF(DEMANDE!J50=3,60%,(IF(DEMANDE!J50=4,30%,50%))))","v":0},0,{"$f":"M23*(IF(DEMANDE!L50=3,60%,(IF(DEMANDE!L50=4,30%,50%))))","v":0},0,{"$f":"O23*(IF(DEMANDE!N50=3,60%,(IF(DEMANDE!N50=4,30%,50%))))","v":0}]
[null,"Coût du projet et aide financière",{"$f":"DEMANDE!E51","v":0},{"$f":"DEMANDE!F51","v":0},"Coût du projet et aide financière",{"$f":"SUM(F13:F23)","v":0},{"$f":"MIN(DEMANDE!L20,DEMANDE!L26,SUM(G13:G23))","v":0},null,null,null,{"$f":"SUM(K13:K23)","v":0},0,0,0,0,0]
[null,"Frais de gestion (5 à 10 %)",{"$f":"ANALYSE!C42","v":0},{"$f":"ANALYSE!D42","v":0},"Frais de gestion (5 à 10 %)",{"$f":"ANALYSE!G42*SUM(F13:F23)","v":0},{"$f":"ANALYSE!G42*SUM(G13:G23)","v":0}]
[null,null,{"$f":"C24+C25","v":0},{"$f":"D24+D25","v":0},null,{"$f":"F24+F25","v":0},{"$f":"MIN(DEMANDE!L20,DEMANDE!L26,G24+G25)","v":0}]
[null,null,null,"Solde ou dépassement (en négatif) de l'engagement initial :",null,null,{"$f":"D26-G26","v":0}]
[null,null,null,null,"Dépassement de l'engagement initial (en %) :",null,{"$f":"IFERROR(IF(G24>D24,-(G27/D24),0),\"\")","v":0}]
[]
["Liste des pièces justificatives et liens avec les investissements dans le tableau du haut",null,null,null,null,null,"À l'usage du MAPAQ"]
["No associé à l'investissement initial","Type de dépenses","Date","No de facture","Fournisseur","Montants avant taxes","Montants admissibles avant taxes","Séquence de réclamations","Date de réclamation"]
[]
[]
[]
[]
[]
[]
[]
[]
[]
[]
[]
[]
[]
[]
[]
[]
[]
[]
[]
[]
[]
[]
[]
[]
[]
[]
[]
[]
[]
[]
[]
[]
[]
[]
[]
[]
[]
["- J’atteste que les montants inscrits correspondent à la somme, avant taxes, réellement engagée et payée aux fins du Projet accepté dans le cadre du FIDSA."]
["- Je joins au formulaire une copie de chaque facture qui y est présentée ainsi que l'ensemble des pièces justificatives exigées et j’en certifie l’authenticité."]
["- J’ai informé le ministère de l'Agriculture, des Pêcheries et de l'Alimention de toute somme d’argent reçue ou à recevoir d’un autre ministère ou organisme "]
["gouvernemental, liée au présent projet pour lequel je reçois une aide financière."]
[]
["Bilan de mon projet: Mon projet a permis de réduire le stress financier et la charge de travail liés à mon entreprise",null,null,null,null,null,null,null,null,1]
[]
[null,"Prénom et nom en lettres moulées :",{"$f":"IF(DEMANDE!B17=\"\",\"\",DEMANDE!B17)","v":""}]
[]
[]
[null,"Signature du bénéficiaire ou de son représentant : ",null,null,null,null,"Date : "]

{"sheet":"LISTES","index":4,"n_rows":221,"n_cols":10,"rows_kept":221,"cut":false,"hidden":true,"merged":[]}
[]
[]
[null,"Démarrage (entreprise qui n'a pas encore de ventes)"]
[null,"Démarrage (entreprise en production depuis moins de 5 ans)"]
[null,"Transfert (au moins un nouveau propriétaire depuis moins de 5 ans)"]
[null,"Expansion (Production en croissance)"]
[null,"Consolidation (Production stable)"]
[]
[]
[null,"Au moins un propriétaire de moins de 45 ans a 20 % des parts, établi depuis moins de 5 ans"]
[null,"Au moins un propriétaire de moins de 45 ans"]
[null,"Tous les propriétaires ont plus de 45 ans, établi depuis moins de 5 ans"]
[null,"Tous les propriétaires ont plus de 45 ans"]
[]
[1,"-"]
[2,"1.A - Dév. entreprises : Aide - individuel",null,null,null,null,20000,{"$f":"SUMIF(ANALYSE!$N$30:$N$40,A16,ANALYSE!$I$30:$I$40)","v":0},{"$f":"IF(H16>G16,\"Oui\",\"Non\")","v":"Non"},0.5]
[3,"1.A - Dév. entreprises : Aide - CUMA",null,null,null,null,20000,{"$f":"SUMIF(ANALYSE!$N$30:$N$40,A17,ANALYSE!$I$30:$I$40)","v":0},{"$f":"IF(H17>G17,\"Oui\",\"Non\")","v":"Non"},0.5]
[4,"1.B - Dév. entreprises : Prod. animales durables - Amé. durables",null,null,null,null,20000,{"$f":"SUMIF(ANALYSE!$N$30:$N$40,A18,ANALYSE!$I$30:$I$40)","v":0},"Non",0.5]
[5,"1.B - Dév. entreprises : Prod. animales durables - Dév. apiculture",null,null,null,null,20000,{"$f":"SUMIF(ANALYSE!$N$30:$N$40,A19,ANALYSE!$I$30:$I$40)","v":0},"Non",0.5]
[6,"1.C - Dév. entreprises : Amé. sols et C.C. - Drainage et nivellement",null,null,null,null,20000,{"$f":"SUMIF(ANALYSE!$N$30:$N$40,A20,ANALYSE!$I$30:$I$40)","v":0},"Non",0.5]
[7,"1.C - Dév. Entreprises : Amé. sols et C.C. - Cultures de couverture",null,null,null,null,20000,{"$f":"SUMIF(ANALYSE!$N$30:$N$40,A21,ANALYSE!$I$30:$I$40)","v":0},"Non",0.5]
[8,"Pour l'aide à la formation (1.D.) Contacter Gaspésie gourmande",null,null,null,null,5000,{"$f":"SUMIF(ANALYSE!$N$30:$N$40,A22,ANALYSE!$I$30:$I$40)","v":0},{"$f":"IF(H22>G22,\"Oui\",\"Non\")","v":"Non"},0.7]
[9,"1.D - Dév. Entreprises : Relève et établissement",null,null,null,null,25000,{"$f":"SUMIF(ANALYSE!$N$30:$N$40,A23,ANALYSE!$I$30:$I$40)","v":0},"Non",0.5]
[10,"1.E - Dév. Entreprises : Remise en culture d'une friche agricole",null,null,null,null,20000,{"$f":"SUMIF(ANALYSE!$N$30:$N$40,A24,ANALYSE!$I$30:$I$40)","v":0},"Non",0.5]
[11,"4 - Dév. activités de transformation",null,null,null,null,20000,{"$f":"SUMIF(ANALYSE!$N$30:$N$40,A25,ANALYSE!$I$30:$I$40)","v":0},"Non",0.5]
[]
[]
[]
[1]
[2,"1.1 Réduire le déficit de fertilité des sols"]
[3,"1.2 Soutenir les producteurs dans l’adoption de bonnes pratiques visant l’amélioration de la santé des sols et leur rendement"]
[4,"1.3 Soutenir le secteur et les entreprises dans les défis reliés à l’adaptation aux changements climatiques"]
[5,"3.3 Appuyer les entreprises dans leurs projets d’optimisation et de modernisation des infrastructures et équipements "]
[6,"3.6 Favoriser l’établissement de la relève et le transfert des entreprises existantes"]
[7,"4.2  Soutenir les initiatives visant l’amélioration de la performance des cheptels "]
[8,"5.3 Appuyer la transférabilité des fermes pour sécuriser le territoire agricole cultivé de la région"]
[]
[]
[null,"Aucune formation reconnue/Ne s'applique pas"]
[null,"Aucun formation reconnu, mais au moins 3 ans d'expérience agricole"]
[null,"Niv. 3 - DEP en agriculture"]
[null,"Niv. 3 - AEC en agriculture"]
[null,"Niv. 3 - DEC non relié à l'agriculture"]
[null,"Niv. 2 - DEC connexe à l'agriculture"]
[null,"Niv. 2 - DEP & AEC en agriculture"]
[null,"Niv. 1 -DEC en agriculture"]
[null,"Niv. 1 - Baccalauréat en agriculture"]
[]
[]
[null,"En analyse"]
[null,"Confirmé"]
[]
[]
[null,"Avignon"]
[null,"Bonaventure"]
[null,"Côte-de-Gaspé"]
[null,"Haute-Gaspésie"]
[null,"Rocher-Percé"]
[]
[]
[null,"Apiculture"]
[null,"Bovins de boucherie"]
[null,"Bovins laitiers"]
[null,"Caprins de boucherie"]
[null,"Caprins laitiers"]
[null,"Ovins"]
[null,"Autres prod. animales"]
[null,"---------------"]
[null,"Acériculture"]
[null,"Grandes cultures"]
[null,"Horticulture ornementale"]
[null,"Maraîchage diversifié"]
[null,"Pommes de terre"]
[null,"Production fourragère"]
[null,"Production fruitière"]
[null,"Produits forestiers non ligneux"]
[null,"Autres prod. végétales"]
[null,"---------------"]
[null,"Transformateur (+50 % produits régionaux)"]
[]
[1]
[2,"- de 30 %",1]
[3,"30 % & +",2]
[4,"50 % & +",3]
[5,"70 % & +",4]
[6,"90 % & +",5]
[]
[null,"Propriétaire"]
[null,"Locataire"]
[]
[null,"Oui"]
[null,"Non"]
[]
[]
[null,"Faible"]
[null,"Moyen"]
[null,"Bon"]
[null,"Très bon"]
[null,"Excellent"]
[]
[null,"Ecocert Canada"]
[null,"Letis S.A."]
[null,"Québec Vrai (OCQV)"]
[null,"Pro-Cert "]
[null,"QAI"]
[null,"TCO Cert"]
[]
[]
[null,"Faible"]
[null,"Moyen"]
[null,"Complexe"]
[]
[]
[null,"Aucune"]
[null,"Peu"]
[null,"Quelques-unes"]
[null,"Plusieurs"]
[null,"Non problématique"]
[]
[]
[null,"< 0 %"]
[null,"0 - 5 %"]
[null,"5-10 %"]
[null,"10 - 20 %"]
[null,"> 20 %"]
[]
[null,"N'est pas une relève"]
[null,"Relève de type 1 "]
[null,"Relève de type 2"]
[]
[]
[null,"< 0 %"]
[null,"0 - 2,5 %"]
[null,"2,5 - 5 %"]
[null,"5 - 10 %"]
[null,"> 10 %"]
[]
[]
[]
[null,"Projet accepté tel que soumis"]
[null,"Projet accepté avec conditions"]
[null,"Projet accepté avec modifications"]
[null,"Projet refusé"]
[null,"Projet inadmissible"]
[]
[null,"Beaucoup"]
[null,"Moyennement"]
[null,"Peu"]
[null,"Pas du tout"]
[]
[]
[null,"Terrain ou immeuble qui est la propriété de l'entreprise, d'un de ses propriétaires ou du demandeur."]
[null,"Terrain ou immeuble avec bail enregistré ou publié (minimum de 5 ans). Nécessaire quand l'investissement admissible est > 10 000 $."]
[null,"Terrain ou immeuble avec bail (minimum de 5 ans ou mention renouvelable). Nécessaire quand l' investissement admissible est < 10 000$."]
[null,"Terrain ou immeuble avec bail à des fins commerciales, délivré par le ministère des Ressources naturelles et des Forêts ou par une MRC délégataire."]
[]
[]
[null,"Toutes les soumissions nécessaires sont présentes"]
[null,"Aucune soumission n'est nécessaire"]
[null,"Non"]
[]
[]
[null,0]
[null,0.05]
[null,0.1]
[]
[null,"Ne s'applique pas"]
[null,"Productions horticoles"]
[]
[null,"Bonaventure"]
[null,"Cap-Chat"]
[null,"Caplan"]
[null,"Carleton-sur-Mer"]
[null,"Cascapédia--Saint-Jules"]
[null,"Chandler"]
[null,"Cloridorme"]
[null,"Collines-du-Basque"]
[null,"Coulée-des-Adolphe"]
[null,"Escuminac"]
[null,"Gaspé"]
[null,"Gesgapegiag"]
[null,"Grande-Rivière"]
[null,"Grande-Vallée"]
[null,"Hope"]
[null,"Hope Town"]
[null,"La Marte"]
[null,"L'Ascension-de-Patapédia"]
[null,"Listiguj"]
[null,"Maria"]
[null,"Marsoui"]
[null,"Matapédia"]
[null,"Mont-Albert"]
[null,"Mont-Alexandre"]
[null,"Mont-Saint-Pierre"]
[null,"Murdochville"]
[null,"New Carlisle"]
[null,"New Richmond"]
[null,"Nouvelle"]
[null,"Paspébiac"]
[null,"Percé"]
[null,"Petite-Vallée"]
[null,"Pointe-à-la-Croix"]
[null,"Port-Daniel--Gascons"]
[null,"Ristigouche-Sud-Est"]
[null,"Rivière-à-Claude"]
[null,"Rivière-Bonaventure"]
[null,"Rivière-Nouvelle"]
[null,"Rivière-Saint-Jean"]
[null,"Ruisseau-Ferguson"]
[null,"Saint-Alexis-de-Matapédia"]
[null,"Saint-Alphonse"]
[null,"Saint-André-de-Restigouche"]
[null,"Sainte-Anne-des-Monts"]
[null,"Saint-Elzéar"]
[null,"Sainte-Madeleine-de-la-Rivière-Madeleine"]
[null,"Sainte-Thérèse-de-Gaspé"]
[null,"Saint-François-d'Assise"]
[null,"Saint-Godefroi"]
[null,"Saint-Maxime-du-Mont-Louis"]
[null,"Saint-Siméon"]
[null,"Shigawake"]

{"sheet":"INFOS","index":5,"n_rows":3,"n_cols":7,"rows_kept":3,"cut":false,"hidden":true,"merged":[]}
[]
[]
[null,null,{"$f":"DEMANDE!B15","v":0},{"$f":"DEMANDE!B17","v":0},{"$f":"DEMANDE!B19","v":0},{"$f":"DEMANDE!B21","v":0},{"$f":"DEMANDE!B27","v":0}]